[Event "*** Titled Tuesday Blitz"]
[Site "Chess.com"]
[Date "2021.04.27"]
[Round "1"]
[White "mr65"]
[Black "GP9isback23"]
[Result "0-1"]
[WhiteElo "2173"]
[BlackElo "2526"]
[TimeControl "180+1"]
[EndTime "10:07:43 PDT"]
[Termination "GP9isback23 won on time"]

1. e4 {[%clk 0:02:56.8]} 1... c5 {[%clk 0:02:59.8]} 2. Nf3 {[%clk 0:02:54.3]}
2... e6 {[%clk 0:02:59.4]} 3. d4 {[%clk 0:02:52.8]} 3... cxd4 {[%clk 0:03:00.3]}
4. Nxd4 {[%clk 0:02:52.3]} 4... Nf6 {[%clk 0:03:00.3]} 5. Nc3 {[%clk 0:02:51.4]}
5... Nc6 {[%clk 0:03:00.6]} 6. a3 {[%clk 0:02:41.2]} 6... a6 {[%clk 0:02:52.5]}
7. g3 {[%clk 0:02:33.9]} 7... Bc5 {[%clk 0:02:35.6]} 8. Be3 {[%clk 0:02:30.9]}
8... Qb6 {[%clk 0:02:20.9]} 9. Na4 {[%clk 0:02:03.5]} 9... Qa5+ {[%clk
0:02:17.4]} 10. b4 {[%clk 0:01:44.5]} 10... Qxa4 {[%clk 0:02:16.2]} 11. bxc5
{[%clk 0:01:33.2]} 11... Nxe4 {[%clk 0:02:16]} 12. Bg2 {[%clk 0:01:30.7]} 12...
Qa5+ {[%clk 0:02:03]} 13. Kf1 {[%clk 0:01:23.1]} 13... Nc3 {[%clk 0:01:27]} 14.
Qd2 {[%clk 0:01:11.2]} 14... Nb5 {[%clk 0:01:03.5]} 15. Qxa5 {[%clk 0:01:07.5]}
15... Nxa5 {[%clk 0:01:03]} 16. Nxb5 {[%clk 0:01:04.5]} 16... axb5 {[%clk
0:01:03.9]} 17. Ke2 {[%clk 0:01:02.4]} 17... Nc4 {[%clk 0:01:01.6]} 18. Rhb1
{[%clk 0:00:56.8]} 18... Ra5 {[%clk 0:00:54.2]} 19. Kd3 {[%clk 0:00:50.3]} 19...
Ke7 {[%clk 0:00:44.5]} 20. Bd4 {[%clk 0:00:44.3]} 20... f6 {[%clk 0:00:43.4]}
21. a4 {[%clk 0:00:40.3]} 21... d5 {[%clk 0:00:36]} 22. axb5 {[%clk 0:00:27.4]}
22... Rxa1 {[%clk 0:00:31.1]} 23. Rxa1 {[%clk 0:00:26.2]} 23... Bd7 {[%clk
0:00:30.3]} 24. b6 {[%clk 0:00:20.1]} 24... Bc6 {[%clk 0:00:28.6]} 25. Ra7
{[%clk 0:00:16.1]} 25... e5 {[%clk 0:00:28.3]} 26. Bc3 {[%clk 0:00:14.6]} 26...
Rd8 {[%clk 0:00:28.2]} 27. Bb4 {[%clk 0:00:13.5]} 27... Ke6 {[%clk 0:00:28.2]}
28. Kc3 {[%clk 0:00:09.9]} 28... g6 {[%clk 0:00:24.4]} 29. h4 {[%clk 0:00:08.7]}
29... h5 {[%clk 0:00:23.8]} 30. Bf1 {[%clk 0:00:06.4]} 30... Rd7 {[%clk
0:00:18.1]} 31. Bxc4 {[%clk 0:00:05.4]} 31... dxc4 {[%clk 0:00:19]} 32. Kxc4
{[%clk 0:00:05.4]} 32... Bd5+ {[%clk 0:00:19.9]} 33. Kc3 {[%clk 0:00:05.1]}
33... Bc6 {[%clk 0:00:20.8]} 34. Kb3 {[%clk 0:00:04.3]} 34... Kf5 {[%clk
0:00:21]} 35. c4 {[%clk 0:00:03.8]} 35... Kg4 {[%clk 0:00:19.8]} 36. Bd2 {[%clk
0:00:03.4]} 36... Kf3 {[%clk 0:00:19]} 37. Be3 {[%clk 0:00:02.9]} 37... f5
{[%clk 0:00:19]} 38. Kc3 {[%clk 0:00:02.3]} 38... f4 {[%clk 0:00:19]} 39. gxf4
{[%clk 0:00:02.4]} 39... exf4 {[%clk 0:00:19.9]} 40. Bd4 {[%clk 0:00:02.6]}
40... Kg4 {[%clk 0:00:17.8]} 41. Ra8 {[%clk 0:00:02.7]} 41... Kxh4 {[%clk
0:00:17.5]} 42. Rc8 {[%clk 0:00:03]} 42... g5 {[%clk 0:00:16.7]} 43. Be5 {[%clk
0:00:03.3]} 43... Be4 {[%clk 0:00:14.9]} 44. Bc7 {[%clk 0:00:01.9]} 44... Re7
{[%clk 0:00:14]} 45. Rg8 {[%clk 0:00:01.3]} 45... Rf7 {[%clk 0:00:11.8]} 46. Bd8
{[%clk 0:00:01.2]} 46... Rf5 {[%clk 0:00:12.2]} 0-1

[Event "*** Titled Tuesday Blitz"]
[Site "Chess.com"]
[Date "2021.04.27"]
[Round "1"]
[White "suyu28"]
[Black "playablecharacter"]
[Result "1-0"]
[WhiteElo "2629"]
[BlackElo "2298"]
[TimeControl "180+1"]
[EndTime "10:07:44 PDT"]
[Termination "suyu28 won by checkmate"]

1. e4 {[%clk 0:02:56.7]} 1... c6 {[%clk 0:02:59.4]} 2. d4 {[%clk 0:02:55.1]}
2... d5 {[%clk 0:03:00.3]} 3. f3 {[%clk 0:02:52.7]} 3... Nf6 {[%clk 0:02:59.7]}
4. e5 {[%clk 0:02:50.9]} 4... Nfd7 {[%clk 0:02:59.5]} 5. f4 {[%clk 0:02:50.9]}
5... c5 {[%clk 0:02:56.9]} 6. Nf3 {[%clk 0:02:49.8]} 6... Nc6 {[%clk 0:02:54.6]}
7. c3 {[%clk 0:02:40.9]} 7... e6 {[%clk 0:02:46.6]} 8. Bd3 {[%clk 0:02:39.9]}
8... Be7 {[%clk 0:02:43.2]} 9. Be3 {[%clk 0:02:36.5]} 9... f5 {[%clk 0:02:38.5]}
10. exf6 {[%clk 0:02:34.1]} 10... Bxf6 {[%clk 0:02:38.9]} 11. dxc5 {[%clk
0:02:30]} 11... O-O {[%clk 0:02:38]} 12. O-O {[%clk 0:02:29.2]} 12... a5 {[%clk
0:02:35.5]} 13. Nbd2 {[%clk 0:02:09.6]} 13... Qe7 {[%clk 0:02:28.9]} 14. Nb3
{[%clk 0:01:57.7]} 14... a4 {[%clk 0:02:27.3]} 15. Nbd4 {[%clk 0:01:58.2]} 15...
Nxc5 {[%clk 0:02:26.7]} 16. Bc2 {[%clk 0:01:58.6]} 16... Bd7 {[%clk 0:02:20.7]}
17. Re1 {[%clk 0:01:58.5]} 17... a3 {[%clk 0:02:17.4]} 18. b4 {[%clk 0:01:54.6]}
18... Ne4 {[%clk 0:02:13]} 19. Bxe4 {[%clk 0:01:45.9]} 19... dxe4 {[%clk
0:02:11.9]} 20. Nxc6 {[%clk 0:01:44.1]} 20... Bxc6 {[%clk 0:02:06.8]} 21. Bc5
{[%clk 0:01:41.8]} 21... Qf7 {[%clk 0:01:55.1]} 22. Nd4 {[%clk 0:01:35.3]} 22...
Rfd8 {[%clk 0:01:42.2]} 23. Qg4 {[%clk 0:01:32.5]} 23... Bxd4+ {[%clk
0:01:14.3]} 24. Bxd4 {[%clk 0:01:31.7]} 24... Rd7 {[%clk 0:01:10]} 25. Re3
{[%clk 0:01:30.5]} 25... Qf5 {[%clk 0:01:09.1]} 26. Qh4 {[%clk 0:01:27.4]} 26...
Rf8 {[%clk 0:01:08]} 27. Rf1 {[%clk 0:01:25.4]} 27... Bb5 {[%clk 0:00:59.9]} 28.
g4 {[%clk 0:01:23.9]} 28... Qf7 {[%clk 0:00:55.6]} 29. Rf2 {[%clk 0:01:22.7]}
29... Bc4 {[%clk 0:00:55.3]} 30. h3 {[%clk 0:01:13.6]} 30... Bd5 {[%clk
0:00:53.8]} 31. Kh2 {[%clk 0:01:11.4]} 31... Qe7 {[%clk 0:00:49]} 32. Qxe7
{[%clk 0:01:09.2]} 32... Rxe7 {[%clk 0:00:49.9]} 33. Bc5 {[%clk 0:01:09.9]}
33... Rff7 {[%clk 0:00:50.6]} 34. Bxe7 {[%clk 0:01:09.6]} 34... Rxe7 {[%clk
0:00:51.5]} 35. Rd2 {[%clk 0:01:09.4]} 35... Rd7 {[%clk 0:00:50.3]} 36. c4
{[%clk 0:01:08]} 36... Bc6 {[%clk 0:00:47.7]} 37. Rxd7 {[%clk 0:01:08.3]} 37...
Bxd7 {[%clk 0:00:48.6]} 38. b5 {[%clk 0:01:07.7]} 38... Kf7 {[%clk 0:00:49.5]}
39. Rxe4 {[%clk 0:01:07.8]} 39... Ke7 {[%clk 0:00:49.8]} 40. Rd4 {[%clk
0:01:05.7]} 40... b6 {[%clk 0:00:48.2]} 41. Kg3 {[%clk 0:01:01.1]} 41... h6
{[%clk 0:00:46.4]} 42. Kf3 {[%clk 0:01:00.9]} 42... Bc8 {[%clk 0:00:44.7]} 43.
Ke4 {[%clk 0:01:01.2]} 43... Kf6 {[%clk 0:00:42.6]} 44. Rd8 {[%clk 0:01:01]}
44... Bb7+ {[%clk 0:00:43.2]} 45. Kd4 {[%clk 0:01:01.5]} 45... Bg2 {[%clk
0:00:43.8]} 46. h4 {[%clk 0:01:01.2]} 46... Bf3 {[%clk 0:00:43.4]} 47. c5 {[%clk
0:01:00.3]} 47... bxc5+ {[%clk 0:00:42.2]} 48. Kxc5 {[%clk 0:01:01.2]} 48...
Bxg4 {[%clk 0:00:40.8]} 49. Rd3 {[%clk 0:00:58]} 49... Bf5 {[%clk 0:00:39.3]}
50. Re3 {[%clk 0:00:58.4]} 50... Bb1 {[%clk 0:00:25.7]} 51. b6 {[%clk
0:00:55.5]} 51... Bxa2 {[%clk 0:00:26]} 52. b7 {[%clk 0:00:55.9]} 52... Bd5
{[%clk 0:00:25.9]} 53. b8=Q {[%clk 0:00:55.5]} 53... a2 {[%clk 0:00:26.4]} 54.
Qe5+ {[%clk 0:00:55.5]} 54... Kf7 {[%clk 0:00:24.4]} 55. Rg3 {[%clk 0:00:54.3]}
55... g6 {[%clk 0:00:25]} 56. h5 {[%clk 0:00:54.2]} 56... Be4 {[%clk 0:00:12.5]}
57. Kd6 {[%clk 0:00:51.4]} 57... g5 {[%clk 0:00:10.4]} 58. fxg5 {[%clk 0:00:51]}
58... Bf5 {[%clk 0:00:10.1]} 59. g6+ {[%clk 0:00:50.4]} 59... Ke8 {[%clk
0:00:07.1]} 60. Qh8# {[%clk 0:00:49.9]} 1-0

[Event "*** Titled Tuesday Blitz"]
[Site "Chess.com"]
[Date "2021.04.27"]
[Round "1"]
[White "Joshukid"]
[Black "GoValya"]
[Result "1-0"]
[WhiteElo "2616"]
[BlackElo "2289"]
[TimeControl "180+1"]
[EndTime "10:07:46 PDT"]
[Termination "Joshukid won by resignation"]

1. Nf3 {[%clk 0:02:53.9]} 1... e6 {[%clk 0:02:58.2]} 2. d4 {[%clk 0:02:53]} 2...
d5 {[%clk 0:02:58]} 3. Bf4 {[%clk 0:02:53.3]} 3... c5 {[%clk 0:02:57.9]} 4. e3
{[%clk 0:02:53.7]} 4... Nf6 {[%clk 0:02:56.9]} 5. c3 {[%clk 0:02:53.8]} 5... Nc6
{[%clk 0:02:56.7]} 6. Nbd2 {[%clk 0:02:53.5]} 6... Bd6 {[%clk 0:02:56.4]} 7. Bg3
{[%clk 0:02:50]} 7... O-O {[%clk 0:02:51.1]} 8. Bd3 {[%clk 0:02:49.1]} 8... Re8
{[%clk 0:02:50.7]} 9. Ne5 {[%clk 0:02:47.9]} 9... Bxe5 {[%clk 0:02:45]} 10. dxe5
{[%clk 0:02:47.3]} 10... Nd7 {[%clk 0:02:45.2]} 11. f4 {[%clk 0:02:40.1]} 11...
f5 {[%clk 0:02:44.4]} 12. exf6 {[%clk 0:02:40.1]} 12... Nxf6 {[%clk 0:02:44.3]}
13. Nf3 {[%clk 0:02:31.2]} 13... Nh5 {[%clk 0:02:12.7]} 14. Ng5 {[%clk 0:02:13]}
14... Nf6 {[%clk 0:02:06.7]} 15. O-O {[%clk 0:02:07]} 15... e5 {[%clk
0:01:43.5]} 16. fxe5 {[%clk 0:01:57.5]} 16... Nxe5 {[%clk 0:01:32.3]} 17. Nxh7
{[%clk 0:01:57.3]} 17... Nfg4 {[%clk 0:00:55.3]} 18. Bxe5 {[%clk 0:01:31.4]}
18... Rxe5 {[%clk 0:00:49.8]} 19. Rf8+ {[%clk 0:01:28.3]} 19... Qxf8 {[%clk
0:00:43.9]} 20. Nxf8 {[%clk 0:01:28.8]} 20... Kxf8 {[%clk 0:00:44.5]} 21. Qf3+
{[%clk 0:01:19]} 21... Kg8 {[%clk 0:00:42.5]} 22. e4 {[%clk 0:01:13.5]} 22... d4
{[%clk 0:00:35.4]} 23. cxd4 {[%clk 0:01:04.7]} 23... cxd4 {[%clk 0:00:35.2]} 24.
Bc4+ {[%clk 0:01:05.4]} 24... Kh7 {[%clk 0:00:35.2]} 25. Rd1 {[%clk 0:01:01.6]}
25... Nf6 {[%clk 0:00:21.2]} 26. Rxd4 {[%clk 0:01:00.8]} 26... Bg4 {[%clk
0:00:21.3]} 27. Qg3 {[%clk 0:00:53.4]} 27... Rae8 {[%clk 0:00:20.9]} 28. h3
{[%clk 0:00:50.2]} 28... Bh5 {[%clk 0:00:19.2]} 29. Kh2 {[%clk 0:00:44.6]} 29...
Nxe4 {[%clk 0:00:18.3]} 30. Bd3 {[%clk 0:00:35.5]} 30... Bg6 {[%clk 0:00:16.6]}
31. Qh4+ {[%clk 0:00:33.6]} 31... Kg8 {[%clk 0:00:16.7]} 32. Rd8 {[%clk
0:00:33.1]} 32... Rxd8 {[%clk 0:00:15.5]} 33. Qxd8+ {[%clk 0:00:33]} 33... Kh7
{[%clk 0:00:16]} 34. Qc7 {[%clk 0:00:27.5]} 34... Rc5 {[%clk 0:00:13.8]} 35.
Qxb7 {[%clk 0:00:24.1]} 35... Nd6 {[%clk 0:00:11.7]} 36. Bxg6+ {[%clk
0:00:23.9]} 36... Kxg6 {[%clk 0:00:12]} 37. Qxa7 {[%clk 0:00:23.9]} 37... Rc2
{[%clk 0:00:10.9]} 38. Qa6 {[%clk 0:00:22.8]} 38... Rd2 {[%clk 0:00:10]} 39. b4
{[%clk 0:00:22.8]} 39... Kf5 {[%clk 0:00:09.3]} 40. Qa5+ {[%clk 0:00:20.8]}
40... Ke4 {[%clk 0:00:08.5]} 41. b5 {[%clk 0:00:20.7]} 41... Nc4 {[%clk
0:00:06]} 42. Qb4 {[%clk 0:00:15.8]} 42... Kd5 {[%clk 0:00:06.3]} 43. b6 {[%clk
0:00:15.3]} 43... Rb2 {[%clk 0:00:06.5]} 44. Qxb2 {[%clk 0:00:14.1]} 44... Nxb2
{[%clk 0:00:06.5]} 45. b7 {[%clk 0:00:15]} 45... Nd3 {[%clk 0:00:05.8]} 46. b8=Q
{[%clk 0:00:15.4]} 1-0

[Event "*** Titled Tuesday Blitz"]
[Site "Chess.com"]
[Date "2021.04.27"]
[Round "1"]
[White "Dyadya81"]
[Black "masteryoungK"]
[Result "0-1"]
[WhiteElo "2708"]
[BlackElo "2421"]
[TimeControl "180+1"]
[EndTime "10:07:49 PDT"]
[Termination "masteryoungK won on time"]

1. e4 {[%clk 0:02:59.2]} 1... c5 {[%clk 0:02:58]} 2. Nc3 {[%clk 0:02:58.3]} 2...
Nc6 {[%clk 0:02:57.7]} 3. Bb5 {[%clk 0:02:55.7]} 3... Nd4 {[%clk 0:02:57.4]} 4.
Bc4 {[%clk 0:02:55.8]} 4... e6 {[%clk 0:02:55.1]} 5. Nge2 {[%clk 0:02:55.4]}
5... Nc6 {[%clk 0:02:54.6]} 6. O-O {[%clk 0:02:52.7]} 6... a6 {[%clk 0:02:55.1]}
7. a4 {[%clk 0:02:48.4]} 7... Nf6 {[%clk 0:02:52.9]} 8. d4 {[%clk 0:02:39.8]}
8... cxd4 {[%clk 0:02:48.1]} 9. Nxd4 {[%clk 0:02:40.7]} 9... Qc7 {[%clk
0:02:48]} 10. Nxc6 {[%clk 0:02:36.9]} 10... Qxc6 {[%clk 0:02:45.9]} 11. Qe2
{[%clk 0:02:26.9]} 11... Bc5 {[%clk 0:02:20.6]} 12. e5 {[%clk 0:02:10.7]} 12...
Ng8 {[%clk 0:02:05.5]} 13. Ne4 {[%clk 0:02:05.6]} 13... Ne7 {[%clk 0:02:05.4]}
14. Be3 {[%clk 0:01:47.1]} 14... Qxe4 {[%clk 0:02:00.6]} 15. Bxc5 {[%clk
0:01:43.4]} 15... Qxe2 {[%clk 0:02:00.9]} 16. Bxe2 {[%clk 0:01:44.2]} 16... f6
{[%clk 0:01:29.2]} 17. f4 {[%clk 0:01:41.3]} 17... a5 {[%clk 0:01:05.4]} 18. Ra3
{[%clk 0:01:28.9]} 18... Nc6 {[%clk 0:00:49.9]} 19. Bd6 {[%clk 0:01:10.1]} 19...
b6 {[%clk 0:00:50.2]} 20. Rg3 {[%clk 0:01:03.7]} 20... Kf7 {[%clk 0:00:42.1]}
21. f5 {[%clk 0:00:43.1]} 21... exf5 {[%clk 0:00:31.9]} 22. Bc4+ {[%clk
0:00:41.1]} 22... Ke8 {[%clk 0:00:26.5]} 23. exf6 {[%clk 0:00:35.7]} 23... gxf6
{[%clk 0:00:23.4]} 24. Rxf5 {[%clk 0:00:34.8]} 24... Ba6 {[%clk 0:00:23.3]} 25.
Bxa6 {[%clk 0:00:28.7]} 25... Rxa6 {[%clk 0:00:24.2]} 26. Rxf6 {[%clk
0:00:29.3]} 26... Nd4 {[%clk 0:00:21.3]} 27. Re3+ {[%clk 0:00:25.5]} 27... Ne6
{[%clk 0:00:21.6]} 28. g3 {[%clk 0:00:16]} 28... Ra8 {[%clk 0:00:21.6]} 29. c3
{[%clk 0:00:15.3]} 29... Rc8 {[%clk 0:00:22]} 30. b3 {[%clk 0:00:14.5]} 30...
Rg8 {[%clk 0:00:20.7]} 31. c4 {[%clk 0:00:13.6]} 31... Rg6 {[%clk 0:00:19.1]}
32. Rxg6 {[%clk 0:00:09.7]} 32... hxg6 {[%clk 0:00:20]} 33. Re4 {[%clk
0:00:09.4]} 33... Kf7 {[%clk 0:00:17.7]} 34. Bf4 {[%clk 0:00:07.1]} 34... Nc5
{[%clk 0:00:15.3]} 35. Re3 {[%clk 0:00:07.1]} 35... Kf6 {[%clk 0:00:11.3]} 36.
Kg2 {[%clk 0:00:05.9]} 36... g5 {[%clk 0:00:08.9]} 37. Be5+ {[%clk 0:00:05]}
37... Kf5 {[%clk 0:00:09.3]} 38. h3 {[%clk 0:00:03.5]} 38... Ne4 {[%clk
0:00:08.7]} 39. Bd4 {[%clk 0:00:02.4]} 39... Nc5 {[%clk 0:00:02.5]} 40. Re5+
{[%clk 0:00:01.1]} 40... Kg6 {[%clk 0:00:02.8]} 41. Bxc5 {[%clk 0:00:01.3]}
41... bxc5 {[%clk 0:00:03.7]} 42. Rd5 {[%clk 0:00:01.4]} 42... Rb8 {[%clk
0:00:03.6]} 43. Rxc5 {[%clk 0:00:01.4]} 43... Rxb3 {[%clk 0:00:04.1]} 44. Rxa5
{[%clk 0:00:01.7]} 44... Rc3 {[%clk 0:00:03.5]} 0-1

[Event "*** Titled Tuesday Blitz"]
[Site "Chess.com"]
[Date "2021.04.27"]
[Round "1"]
[White "rynos0411"]
[Black "ChampStan"]
[Result "1-0"]
[WhiteElo "2504"]
[BlackElo "2094"]
[TimeControl "180+1"]
[EndTime "10:07:51 PDT"]
[Termination "rynos0411 won by resignation"]

1. d4 {[%clk 0:02:56.8]} 1... Nf6 {[%clk 0:02:59.4]} 2. c4 {[%clk 0:02:55.1]}
2... e6 {[%clk 0:02:58.6]} 3. Nf3 {[%clk 0:02:55.3]} 3... Bb4+ {[%clk
0:02:39.2]} 4. Bd2 {[%clk 0:02:53.4]} 4... Qe7 {[%clk 0:02:38.7]} 5. a3 {[%clk
0:02:46.1]} 5... Bxd2+ {[%clk 0:02:36.9]} 6. Qxd2 {[%clk 0:02:46.2]} 6... O-O
{[%clk 0:02:33.9]} 7. Nc3 {[%clk 0:02:46.1]} 7... d5 {[%clk 0:02:30.9]} 8. cxd5
{[%clk 0:02:40.7]} 8... exd5 {[%clk 0:02:29.3]} 9. e3 {[%clk 0:02:40.9]} 9... b6
{[%clk 0:02:17.2]} 10. Be2 {[%clk 0:02:33.3]} 10... Bb7 {[%clk 0:02:13.9]} 11.
O-O {[%clk 0:02:30.6]} 11... c6 {[%clk 0:02:00.5]} 12. Qc2 {[%clk 0:02:22.5]}
12... Na6 {[%clk 0:01:58.1]} 13. Ne5 {[%clk 0:02:17.6]} 13... Nc7 {[%clk
0:01:56.6]} 14. Rac1 {[%clk 0:02:14.5]} 14... c5 {[%clk 0:01:35.2]} 15. Na4
{[%clk 0:01:55.4]} 15... Rac8 {[%clk 0:01:23.2]} 16. Nf3 {[%clk 0:01:38.5]}
16... Ne6 {[%clk 0:01:20.1]} 17. dxc5 {[%clk 0:01:33.7]} 17... bxc5 {[%clk
0:01:19]} 18. Rfd1 {[%clk 0:01:31.8]} 18... d4 {[%clk 0:01:04.7]} 19. Bc4 {[%clk
0:00:40]} 19... Bxf3 {[%clk 0:01:00.2]} 20. gxf3 {[%clk 0:00:39.6]} 20... Ng5
{[%clk 0:00:57.7]} 21. Qf5 {[%clk 0:00:34.4]} 21... Nh5 {[%clk 0:00:39]} 22. Kh1
{[%clk 0:00:16.4]} 22... g6 {[%clk 0:00:38]} 23. Qg4 {[%clk 0:00:15.5]} 23...
dxe3 {[%clk 0:00:27.8]} 24. Re1 {[%clk 0:00:11.9]} 24... Qf6 {[%clk 0:00:18.6]}
25. Rxe3 {[%clk 0:00:10.3]} 25... Nf4 {[%clk 0:00:16.9]} 26. Nc3 {[%clk
0:00:03.8]} 26... Ngh3 {[%clk 0:00:11.3]} 27. Rf1 {[%clk 0:00:02.8]} 27... h5
{[%clk 0:00:10.4]} 28. Qg3 {[%clk 0:00:02.7]} 28... Rcd8 {[%clk 0:00:10.1]} 29.
Ne4 {[%clk 0:00:02.2]} 29... Qd4 {[%clk 0:00:09.8]} 30. Rc3 {[%clk 0:00:01.2]}
30... Kg7 {[%clk 0:00:10]} 31. Bb3 {[%clk 0:00:01]} 31... Rfe8 {[%clk 0:00:10]}
32. Ng5 {[%clk 0:00:01.2]} 32... Re7 {[%clk 0:00:09.3]} 33. Nxh3 {[%clk
0:00:01.5]} 33... Nxh3 {[%clk 0:00:09]} 34. Qxh3 {[%clk 0:00:02.4]} 34... Re2
{[%clk 0:00:08.7]} 35. Qg3 {[%clk 0:00:02.7]} 35... Rde8 {[%clk 0:00:08.7]} 36.
Re3 {[%clk 0:00:02.9]} 36... R8xe3 {[%clk 0:00:08.1]} 37. fxe3 {[%clk
0:00:03.8]} 37... Qxe3 {[%clk 0:00:09]} 38. Bd5 {[%clk 0:00:03.5]} 38... Rxb2
{[%clk 0:00:08.8]} 39. Be4 {[%clk 0:00:03.8]} 39... Qd2 {[%clk 0:00:08.5]} 40.
f4 {[%clk 0:00:04.2]} 40... c4 {[%clk 0:00:08.5]} 41. f5 {[%clk 0:00:04.6]}
41... g5 {[%clk 0:00:09.1]} 42. h4 {[%clk 0:00:04.5]} 42... g4 {[%clk
0:00:08.6]} 43. f6+ {[%clk 0:00:05.4]} 43... Kh6 {[%clk 0:00:07.8]} 44. Qf4+
{[%clk 0:00:05.9]} 44... Qxf4 {[%clk 0:00:07.9]} 45. Rxf4 {[%clk 0:00:06.5]}
45... c3 {[%clk 0:00:08]} 46. Rf5 {[%clk 0:00:06.9]} 46... c2 {[%clk 0:00:07.4]}
47. Bxc2 {[%clk 0:00:07.3]} 47... Rb1+ {[%clk 0:00:08]} 48. Bxb1 {[%clk
0:00:07.2]} 1-0

[Event "*** Titled Tuesday Blitz"]
[Site "Chess.com"]
[Date "2021.04.27"]
[Round "1"]
[White "mamey78"]
[Black "gxbg2000"]
[Result "1-0"]
[WhiteElo "2484"]
[BlackElo "1950"]
[TimeControl "180+1"]
[EndTime "10:07:54 PDT"]
[Termination "mamey78 won on time"]

1. e4 {[%clk 0:03:00]} 1... e5 {[%clk 0:02:59.2]} 2. Nf3 {[%clk 0:02:59.8]} 2...
Nc6 {[%clk 0:02:57.2]} 3. Bb5 {[%clk 0:03:00.1]} 3... d6 {[%clk 0:02:57.2]} 4.
c3 {[%clk 0:02:59.6]} 4... a6 {[%clk 0:02:57.7]} 5. Ba4 {[%clk 0:02:57.4]} 5...
Bd7 {[%clk 0:02:57.8]} 6. d4 {[%clk 0:02:57]} 6... exd4 {[%clk 0:02:56.5]} 7.
cxd4 {[%clk 0:02:56.6]} 7... Nf6 {[%clk 0:02:57.4]} 8. Nc3 {[%clk 0:02:55.3]}
8... Be7 {[%clk 0:02:56.6]} 9. O-O {[%clk 0:02:52.6]} 9... h6 {[%clk 0:02:56.6]}
10. h3 {[%clk 0:02:53]} 10... O-O {[%clk 0:02:56.6]} 11. Re1 {[%clk 0:02:53.4]}
11... Re8 {[%clk 0:02:47.7]} 12. Bc2 {[%clk 0:02:52]} 12... Bf8 {[%clk
0:02:46.9]} 13. a3 {[%clk 0:02:50.3]} 13... b5 {[%clk 0:02:37.8]} 14. Bf4 {[%clk
0:02:49.2]} 14... Qc8 {[%clk 0:02:31.4]} 15. Qd3 {[%clk 0:02:41.8]} 15... g6
{[%clk 0:02:19.1]} 16. Qd2 {[%clk 0:02:29.5]} 16... b4 {[%clk 0:02:04.8]} 17.
Nd5 {[%clk 0:02:25.2]} 17... Nxd5 {[%clk 0:02:03.6]} 18. exd5 {[%clk 0:02:25.9]}
18... Ne7 {[%clk 0:02:02.3]} 19. Bxh6 {[%clk 0:02:17.9]} 19... Nxd5 {[%clk
0:01:42.5]} 20. Bxf8 {[%clk 0:02:16.2]} 20... Rxf8 {[%clk 0:01:40.8]} 21. Qh6
{[%clk 0:02:16.3]} 21... Nf6 {[%clk 0:01:15.1]} 22. Ng5 {[%clk 0:02:10.3]} 22...
Bf5 {[%clk 0:01:14.2]} 23. Bb3 {[%clk 0:02:08.8]} 23... d5 {[%clk 0:01:01.5]}
24. Bxd5 {[%clk 0:02:06.4]} 24... Qd7 {[%clk 0:01:00.2]} 25. Bxa8 {[%clk
0:02:00.6]} 25... Rxa8 {[%clk 0:00:58.9]} 26. Rad1 {[%clk 0:01:47.3]} 26... Re8
{[%clk 0:00:54.2]} 27. axb4 {[%clk 0:01:34.4]} 27... Rxe1+ {[%clk 0:00:50.2]}
28. Rxe1 {[%clk 0:01:35.3]} 28... c6 {[%clk 0:00:47.3]} 29. Re3 {[%clk
0:01:25.8]} 29... Qd8 {[%clk 0:00:26.1]} 30. Re5 {[%clk 0:01:16]} 30... Qf8
{[%clk 0:00:24.6]} 31. Qxf8+ {[%clk 0:01:10.9]} 31... Kxf8 {[%clk 0:00:24.2]}
32. Rc5 {[%clk 0:01:10.6]} 32... Bd7 {[%clk 0:00:22.6]} 33. Nf3 {[%clk
0:01:05.8]} 33... Ke7 {[%clk 0:00:22.1]} 34. Ne5 {[%clk 0:01:04.6]} 34... Be8
{[%clk 0:00:20]} 35. Nxc6+ {[%clk 0:01:03.7]} 35... Kd6 {[%clk 0:00:19.2]} 36.
Ne5 {[%clk 0:01:04.6]} 36... Ne4 {[%clk 0:00:17.2]} 37. Rc8 {[%clk 0:00:57.7]}
37... Bb5 {[%clk 0:00:14.9]} 38. Rd8+ {[%clk 0:00:57.3]} 38... Ke7 {[%clk
0:00:14.4]} 39. Ra8 {[%clk 0:00:52.2]} 39... g5 {[%clk 0:00:13.5]} 40. Rxa6
{[%clk 0:00:51.8]} 40... Bxa6 {[%clk 0:00:12.1]} 41. f3 {[%clk 0:00:51.3]} 41...
Nd6 {[%clk 0:00:11]} 42. Kf2 {[%clk 0:00:49.8]} 42... f6 {[%clk 0:00:11.1]} 43.
Ng4 {[%clk 0:00:46.5]} 43... Ke6 {[%clk 0:00:10.5]} 44. g3 {[%clk 0:00:46.5]}
44... f5 {[%clk 0:00:10.7]} 45. Ne3 {[%clk 0:00:46.3]} 45... Nc4 {[%clk
0:00:08.8]} 46. d5+ {[%clk 0:00:34]} 46... Ke5 {[%clk 0:00:07.5]} 47. h4 {[%clk
0:00:21.9]} 47... Nxe3 {[%clk 0:00:05.7]} 48. Kxe3 {[%clk 0:00:22.8]} 48... gxh4
{[%clk 0:00:02.5]} 49. gxh4 {[%clk 0:00:23.7]} 49... f4+ {[%clk 0:00:01.7]} 50.
Kf2 {[%clk 0:00:22.3]} 50... Kxd5 {[%clk 0:00:02.2]} 51. h5 {[%clk 0:00:21]} 1-0